bitfinex-derivatives/quotes_BNBF0:USTF0_20250331
["timestamp","ask_amount","ask_price","bid_price","bid_amount"]
[1743409949104,1.13659522,594.89,594.23,0.27362817]
[1743409949497,0.713,594.88,594.23,0.27362817]
[1743409949704,1.84959522,594.88,594.23,0.27362817]
[1743409950205,1.13659522,594.87,594.23,0.27362817]
[1743409950803,1.13659522,594.86,594.23,0.27362817]
[1743409951603,1.13659522,594.85,594.23,0.27362817]
[1743409951800,0.713,594.88,594.23,0.27362817]
[1743409952203,1.1372702,594.87,594.23,0.27362817]
[1743409952802,1.1372702,594.86,594.23,0.27362817]
[1743409953506,0.713,594.88,594.23,0.27362817]
[1743409953800,1.13731906,594.87,594.23,0.27362817]
[1743409954403,1.13731906,594.86,594.23,0.27362817]
[1743409955005,0.713,594.88,594.23,0.27362817]
[1743409955207,0.713,594.88,594.22,0.33657567]
[1743409955502,0.713,594.88,594.23,0.27359357]
[1743409957405,3.39594052,594.87,594.23,0.27359357]
[1743409957708,2.25864118,594.86,594.23,0.27359357]
[1743409957904,3.39589747,594.85,594.24,0.27359357]
[1743409958108,0.86120528,594.84,593.61,0.27359357]
[1743409958312,1.43007461,594.85,593.62,0.27359357]
[1743409958510,1.43007461,594.85,593.63,0.27359357]
[1743409958710,1.13729934,594.84,593.65,0.33689884]
[1743409959013,1.13729934,594.84,593.66,0.27359357]
[1743409959214,1.13729934,594.83,593.67,0.27359357]
[1743409959512,1.13729934,594.83,593.68,0.27359357]
[1743409959713,0.29277527,594.85,593.69,0.27359357]
[1743409959905,0.29277527,594.85,593.71,0.33686479]
[1743409960110,0.29277527,594.85,593.72,0.27359357]
[1743409960307,1.13820433,594.84,593.73,0.27359357]
[1743409960510,1.13820433,594.84,593.75,0.3368421]
[1743409960806,1.13820433,594.84,593.76,0.27370401]
[1743409961113,5.07024357,594.83,593.77,0.61053476]
[1743409961307,2.26048049,594.82,593.78,0.61052909]
[1743409961511,1.13820433,594.82,593.79,0.27370401]
[1743409961706,1.13820433,594.82,593.8,0.27370401]
[1743409961906,1.13820433,594.81,593.81,0.61051207]
[1743409962111,1.13820433,594.81,593.82,0.6105064]
[1743409962310,1.13820433,594.81,593.83,0.61050073]
[1743409962510,3.39767689,594.8,593.84,0.61049506]
[1743409962707,2.25955804,594.79,593.85,0.61048939]
[1743409963006,5.21785659,594.78,593.86,0.61048372]
[1743409963211,2.99346341,594.77,593.87,0.27370401]
[1743409963409,2.25946341,594.76,593.88,0.27370401]
[1743409963612,2.25946341,594.75,593.89,0.27370401]
[1743409963807,2.25946341,594.75,593.87,0.27370401]
[1743409963808,0.86136661,594.74,593.87,0.27370401]
[1743409964012,1.13820433,594.75,593.88,0.27370401]
[1743409964215,1.13820433,594.74,593.88,0.27370401]
[1743409964412,1.13820433,594.74,593.89,0.27370401]
[1743409964616,1.13820433,594.74,593.87,0.27370401]
[1743409964816,1.13820433,594.73,593.88,0.61047238]
[1743409965017,1.13820433,594.73,593.89,0.61046671]
[1743409965214,1.13820433,594.72,593.9,0.33675702]
[1743409965414,1.13820433,594.72,593.91,0.27370401]
[1743409965819,0.734,594.77,593.91,0.27370401]
[1743409966119,2.25687906,594.76,593.91,0.27370401]
[1743409966320,0.86040986,594.75,593.91,0.27370401]
[1743409966521,1.13621855,594.75,593.91,0.27370401]
[1743409966913,1.13621855,594.74,593.91,0.27370401]
[1743409967421,1.13621855,594.73,593.91,0.27370401]
[1743409967819,1.13621855,594.72,593.91,0.27370401]
[1743409968419,0.734,594.77,593.91,0.27370401]
[1743409968618,2.25548237,594.76,593.91,0.27370401]
[1743409968815,1.13570857,594.75,593.91,0.27370401]
[1743409969417,1.13570857,594.74,593.91,0.27370401]
[1743409969620,0.734,594.77,593.91,0.27370401]
[1743409970326,0.734,594.77,593.92,0.33674568]
[1743409970526,0.734,594.77,593.93,0.27370401]
[1743409970728,0.734,594.77,593.94,0.33673435]
[1743409970925,0.734,594.77,593.95,0.27370401]
[1743409971720,0.734,594.77,593.96,0.27370108]
[1743409971921,0.734,594.77,593.95,0.27370108]
[1743409973421,0.734,594.77,593.94,0.33673435]
[1743409973623,0.734,594.77,593.95,0.27378165]
[1743409974326,0.624,594.76,593.95,0.27378165]
[1743409976430,5.85472966,594.75,593.95,0.27378165]
[1743409976628,5.85472966,594.74,593.95,0.27378165]
[1743409976829,8.80693203,594.73,593.95,0.27378165]
[1743409977032,5.85472966,594.72,593.95,0.27378165]
[1743409977331,3.62749479,594.71,593.95,0.27378165]
[1743409977531,2.25522377,594.7,593.95,0.27378165]
[1743409977724,2.25522377,594.69,593.95,0.27378165]
[1743409977923,2.25522377,594.68,593.95,0.27378165]
[1743409978132,2.25522377,594.67,593.95,0.27378165]
[1743409978330,2.25522377,594.66,593.95,0.27378165]
[1743409978631,3.39068622,594.65,593.95,0.27378165]
[1743409978826,2.25522377,594.64,593.95,0.27378165]
[1743409979039,3.38709921,594.63,593.95,0.27378165]
[1743409979231,0.85975319,594.62,593.95,0.27378165]
[1743409979527,1.13546245,594.61,593.95,0.27378165]
[1743409980233,1.13546245,594.6,593.95,0.27378165]
[1743409980629,1.13546245,594.59,593.95,0.27378165]
[1743409981332,1.13546245,594.59,593.94,0.33673435]
[1743409981539,1.13546245,594.58,593.95,0.27381131]
[1743409981930,0.615,594.69,593.95,0.27381131]
[1743409982536,1.13222281,594.68,593.95,0.27381131]
[1743409983229,0.615,594.69,593.95,0.27381131]
[1743409983733,0.615,594.69,593.94,0.33673435]
[1743409983935,0.615,594.69,593.95,0.27376406]
[1743409992835,0.615,594.69,593.96,0.33672301]
[1743409993039,0.615,594.69,593.97,0.27376406]
[1743409993239,0.615,594.69,593.98,0.33671167]
[1743409993441,0.615,594.69,593.99,0.27376406]
[1743409993634,0.615,594.69,594.0,0.33670033]
[1743409993834,0.615,594.69,594.01,0.27376406]
[1743409994540,1.581,594.69,594.01,0.27376406]
[1743409994733,1.581,594.69,594.02,0.336689]
[1743409994934,1.581,594.69,594.03,0.27376406]
[1743409995638,1.581,594.69,594.03,0.61044739]
[1743409995838,1.581,594.69,594.04,0.27376406]
[1743409998137,1.581,594.69,594.03,0.33668333]
[1743409998339,1.581,594.69,594.04,0.2736583]
[1743410000551,1.581,594.69,594.05,0.2736583]
[1743410000736,1.581,594.69,594.03,0.33668333]
[1743410000737,1.581,594.69,594.04,0.2736583]
[1743410000935,1.581,594.69,594.05,0.2736583]
[1743410001140,1.581,594.69,594.04,0.2736583]
[1743410003750,1.581,594.69,594.05,0.2737463]
[1743410003944,1.581,594.69,594.04,0.2737463]
[1743410004142,1.581,594.69,594.06,0.2737463]
[1743410004340,1.581,594.69,594.07,0.2737463]
[1743410004545,1.13554275,594.68,594.04,0.2737463]
[1743410004740,1.13554275,594.67,594.04,0.2737463]
[1743410005341,1.731,594.69,594.03,0.33668333]
[1743410005546,1.731,594.69,594.04,0.27376648]
[1743410005746,1.1355942,594.68,594.04,0.27376648]
[1743410006347,2.02376788,594.69,594.04,0.27376648]
[1743410006542,2.25541918,594.68,594.04,0.27376648]
[1743410006747,2.02376788,594.69,594.04,0.27376648]
[1743410007150,2.71576788,594.69,594.03,0.33668333]
[1743410007350,2.71576788,594.69,594.04,0.27377489]
[1743410008954,2.71576788,594.69,594.05,0.27377597]
[1743410009255,2.71576788,594.69,594.06,0.27377597]
[1743410009752,2.71576788,594.69,594.07,0.27377597]
[1743410009948,2.71576788,594.69,594.04,0.27377597]
[1743410012054,2.71576788,594.69,594.05,0.27377597]
[1743410012254,2.71576788,594.69,593.44,0.27377597]
[1743410012450,2.71576788,594.69,593.46,0.3370067]
[1743410012748,2.71576788,594.69,593.47,0.27377597]
[1743410012955,2.71576788,594.69,593.49,0.33698967]
[1743410013156,2.71576788,594.69,593.5,0.27377597]
[1743410013354,2.71576788,594.69,593.51,0.61075428]
[1743410013557,2.71576788,594.69,593.52,0.6107486]
[1743410013757,6.36993804,594.68,593.53,0.61074293]
[1743410014056,6.36993804,594.67,593.54,0.61073725]
[1743410014358,6.36993804,594.66,593.55,0.3369556]
[1743410014556,6.36993804,594.65,593.56,0.2738217]
[1743410014756,6.36993804,594.65,593.57,0.2738217]
[1743410014757,5.86535222,594.64,593.57,0.2738217]
[1743410014958,6.36995766,594.63,593.58,0.61076027]
[1743410015156,6.36995766,594.62,593.59,0.61075459]
[1743410015357,2.95311209,594.63,593.6,0.2738217]
[1743410015653,6.36932772,594.62,593.6,0.2738217]
[1743410015850,6.36932772,594.61,593.6,0.2738217]
[1743410016051,6.36932772,594.6,593.6,0.2738217]
[1743410016254,6.36932772,594.59,593.6,0.2738217]
[1743410016460,6.36932772,594.58,593.6,0.2738217]
[1743410016653,6.36932772,594.57,593.6,0.2738217]
[1743410016852,6.36932772,594.56,593.6,0.2738217]
[1743410017056,6.37048251,594.55,593.6,0.2738217]
[1743410017351,5.86579591,594.54,593.6,0.2738217]
[1743410017555,5.86579591,594.53,593.6,0.2738217]
[1743410017756,5.86579591,594.52,593.6,0.2738217]
[1743410017950,5.86579591,594.51,593.59,0.33693289]
[1743410018152,5.86579591,594.5,593.6,0.27388654]
[1743410018356,5.86579591,594.49,593.6,0.27388654]
[1743410018555,5.86426742,594.48,593.6,0.27388654]
[1743410018757,2.25607535,594.47,593.6,0.27388654]
[1743410019051,2.25607535,594.46,593.6,0.27388654]
[1743410019253,5.20918744,594.45,593.6,0.27388654]
[1743410019450,2.25607535,594.44,593.6,0.27388654]
[1743410019650,2.25607535,594.43,593.6,0.27388654]
[1743410019850,3.39166955,594.42,593.61,0.27389489]
[1743410020055,1.39496785,594.41,593.6,0.27389489]
[1743410020256,1.1355942,594.42,593.61,0.27389489]
[1743410020556,2.2537207,594.41,593.59,0.33693289]
[1743410020755,2.2537207,594.4,593.59,0.33693289]
[1743410020959,2.2537207,594.39,593.59,0.33693289]
[1743410021154,2.2537207,594.38,593.59,0.33693289]
[1743410021351,8.80700191,594.37,593.59,0.33693289]
[1743410021558,5.85596881,594.36,593.38,0.29306497]
[1743410021853,5.85596881,594.35,593.39,0.27403675]
[1743410022056,5.85596881,594.34,593.39,0.27403675]
[1743410022358,5.85596881,594.33,593.39,0.27403675]
[1743410022553,3.62710944,594.32,593.39,0.27403675]
[1743410022749,2.2537207,594.31,593.39,0.27403675]
[1743410022953,2.2537207,594.3,593.39,0.27403675]
[1743410023155,2.24968726,594.29,593.39,0.27403675]
[1743410023351,2.24968726,594.28,593.39,0.27403675]
[1743410023550,2.24968726,594.27,593.39,0.27403675]
[1743410023755,2.24968726,594.26,592.28,0.27403675]
[1743410023957,2.24968726,594.25,593.4,0.27403675]
[1743410024151,2.24968726,594.24,592.3,0.33766672]
[1743410024355,2.24968726,594.23,592.31,0.27403675]
[1743410024653,2.24968726,594.22,592.32,0.27403675]
[1743410024857,2.24968726,594.21,592.34,0.33764392]
[1743410025058,2.24968726,594.2,592.35,0.27403675]
[1743410025257,2.24968726,594.19,592.37,0.33762682]
[1743410025456,3.38528146,594.18,592.38,0.27403675]
[1743410025653,1.1355942,594.18,592.4,0.33760972]
[1743410025854,1.1355942,594.17,592.41,0.27403675]
[1743410026053,1.1355942,594.17,592.43,0.33759262]
[1743410026264,1.1355942,594.17,592.44,0.27403675]
[1743410026454,2.24388357,594.16,592.46,0.33757553]
[1743410026755,2.24388357,594.15,592.46,0.33757553]
[1743410026958,2.24388357,594.14,592.47,0.27408498]
[1743410027157,2.24388357,594.13,592.47,0.27408498]
[1743410027359,3.37947777,594.12,592.49,0.33755843]
[1743410027553,2.24388357,594.11,592.5,0.27408498]
[1743410027755,0.85552127,594.1,592.52,0.33754134]
[1743410027958,1.1355942,594.12,592.53,0.27408498]
[1743410028154,1.1355942,594.09,592.53,0.27408498]
[1743410028459,1.1355942,594.09,592.55,0.33752425]
[1743410028659,1.1355942,594.09,592.56,0.27408498]
[1743410028860,1.1355942,594.09,592.58,0.33750717]
[1743410029054,1.1355942,594.09,592.59,0.27408498]
[1743410029260,0.99430587,594.66,592.61,0.33749008]
[1743410029261,1.1355942,594.08,592.61,0.33749008]
[1743410029463,1.1355942,594.08,592.62,0.27408498]
[1743410029854,0.85426883,594.23,592.64,0.337473]
[1743410030054,0.85426883,594.23,592.65,0.27408498]
[1743410030256,0.29315879,594.12,592.65,0.27408498]
[1743410030463,1.1355942,594.21,592.65,0.27408498]
[1743410030663,1.1355942,594.21,592.66,0.27405532]
[1743410030863,1.1355942,594.21,592.65,0.27405532]
[1743410031160,2.0235942,594.2,592.65,0.27405532]
[1743410031361,0.888,594.2,592.64,0.337473]
[1743410031556,0.888,594.2,592.65,0.27405067]
[1743410031759,0.29313039,594.19,592.67,0.33745591]
[1743410031963,0.29313039,594.19,592.68,0.27405067]
[1743410032661,0.29313039,594.19,592.7,0.33743883]
[1743410032964,0.888,594.2,592.71,0.27405067]
[1743410033261,0.888,594.2,592.73,0.33742176]
[1743410033463,0.888,594.2,592.74,0.27405067]
[1743410033655,0.888,594.2,592.76,0.33740468]
[1743410033860,0.888,594.2,592.77,0.27405067]
[1743410034156,0.888,594.2,592.79,0.3373876]
[1743410034357,0.888,594.2,592.8,0.27405067]
[1743410034560,0.888,594.2,592.82,0.33737053]
[1743410036664,0.888,594.2,592.83,0.27404376]
[1743410036861,0.888,594.2,592.85,0.33735346]
[1743410037058,1.1355942,594.19,592.86,0.27404376]
[1743410037264,1.1355942,594.19,592.88,0.33733639]
[1743410037463,1.1355942,594.19,592.89,0.27404376]
[1743410037667,0.888,594.2,592.91,0.33731932]
[1743410037858,0.888,594.2,592.92,0.27404376]
[1743410038057,0.888,594.2,592.94,0.33730225]
[1743410038262,0.888,594.2,592.95,0.27404376]
[1743410038462,0.888,594.2,592.97,0.33728519]
[1743410038664,0.888,594.2,592.98,0.27404376]
[1743410038864,1.12563654,594.19,593.0,0.33726812]
[1743410039064,1.81063654,594.19,593.0,0.33726812]
[1743410039366,1.81063654,594.19,593.01,0.27404376]
[1743410039564,0.685,594.19,593.03,0.33725106]
[1743410039864,0.685,594.19,593.04,0.27403947]
[1743410040060,0.685,594.19,593.06,0.337234]
[1743410040265,0.685,594.19,593.07,0.27403947]
[1743410040460,0.685,594.19,593.09,0.33721694]
[1743410040659,0.685,594.19,593.1,0.27403947]
[1743410040862,0.685,594.19,593.12,0.33719989]
[1743410041063,0.685,594.19,593.13,0.27403947]
[1743410041365,0.685,594.19,593.14,0.33718852]
[1743410041559,0.685,594.19,593.15,0.27403947]
[1743410041760,0.685,594.19,593.16,0.33717715]
[1743410042059,0.685,594.19,593.17,0.27403947]
[1743410042458,0.685,594.19,593.18,0.33716578]
[1743410042665,0.685,594.19,593.19,0.27403947]
[1743410042860,0.685,594.19,593.2,0.33715441]
[1743410043065,0.685,594.19,593.21,0.27403947]
[1743410043258,0.685,594.19,593.22,0.33714304]
[1743410043466,0.685,594.19,593.23,0.27403947]
[1743410044063,0.685,594.19,593.24,0.33713168]
[1743410044468,0.685,594.19,593.25,0.27402024]
[1743410044761,0.685,594.19,593.26,0.33712031]
[1743410044961,0.685,594.19,593.27,0.27402024]
[1743410045163,0.685,594.19,593.28,0.33710895]
[1743410045461,0.685,594.19,593.29,0.27402024]
[1743410045667,0.685,594.19,593.3,0.33709758]
[1743410045967,0.685,594.19,593.31,0.27402024]
[1743410046561,0.685,594.19,593.32,0.33708622]
[1743410046764,0.685,594.19,593.33,0.27402024]
[1743410046965,0.685,594.19,593.34,0.33707486]
[1743410047264,0.685,594.19,593.35,0.27402024]
[1743410047462,0.685,594.19,593.36,0.3370635]
[1743410047761,0.685,594.19,593.37,0.27402024]
[1743410047963,0.685,594.19,593.38,0.33705214]
[1743410048166,0.685,594.19,593.39,0.27396376]
[1743410048362,0.685,594.19,593.4,0.33704078]
[1743410048566,0.685,594.19,593.41,0.27396376]
[1743410048762,0.685,594.19,593.42,0.33702942]
[1743410049062,0.685,594.19,593.43,0.27396376]
[1743410049265,0.685,594.19,593.43,0.6109875]
[1743410049462,0.685,594.19,593.44,0.27396376]
[1743410049869,0.685,594.19,593.44,0.61098182]
[1743410050171,0.685,594.19,593.45,0.61097614]
[1743410050374,0.685,594.19,593.46,0.61097046]
[1743410050572,0.685,594.19,593.47,0.61096478]
[1743410050770,0.685,594.19,593.48,0.27396376]
[1743410051171,0.685,594.19,593.49,0.33698967]
[1743410051370,0.685,594.19,593.5,0.27396376]
[1743410051568,0.685,594.19,593.5,0.61094775]
[1743410051768,0.685,594.19,593.51,0.27396376]
[1743410052970,0.685,594.19,593.51,0.61094207]
[1743410053169,0.685,594.19,593.52,0.27396376]
[1743410054063,1.649,594.19,593.52,0.27396376]
[1743410054467,1.649,594.19,593.52,0.61093639]
[1743410054665,1.649,594.19,593.53,0.27396376]
[1743410057468,1.649,594.19,593.54,0.33696128]
[1743410057668,1.649,594.19,593.55,0.27396376]
[1743410059572,1.649,594.19,593.56,0.33694992]
[1743410059869,1.649,594.19,593.57,0.27396376]
[1743410060174,1.649,594.19,593.58,0.33693857]
[1743410060565,1.649,594.19,593.59,0.27396376]
[1743410060772,1.649,594.19,593.6,0.33692722]
[1743410060968,1.649,594.19,593.61,0.27396376]
[1743410062476,1.649,594.19,593.62,0.33691587]
[1743410062675,1.649,594.19,593.63,0.27396376]
[1743410062874,1.649,594.19,593.64,0.33690452]
[1743410063072,1.649,594.19,593.65,0.27396376]
[1743410064473,1.649,594.19,593.66,0.33689317]
[1743410064678,1.649,594.19,593.67,0.27396376]
[1743410064877,1.649,594.19,593.68,0.27396376]
[1743410065076,1.649,594.19,593.69,0.27396376]
[1743410065282,1.649,594.19,593.67,0.27396376]
[1743410065486,1.649,594.19,593.68,0.27396376]
[1743410065688,1.649,594.19,593.67,0.27396376]
[1743410065885,1.649,594.19,593.68,0.27396376]
[1743410066083,1.649,594.19,593.67,0.27396376]
[1743410066282,1.649,594.19,593.68,0.27396376]
[1743410066487,1.649,594.19,593.67,0.27396376]
[1743410066686,1.649,594.19,593.68,0.27396376]
[1743410066883,1.649,594.19,593.69,0.27396376]
[1743410067082,1.649,594.19,593.67,0.27396376]
[1743410067288,1.649,594.19,593.68,0.61084558]
[1743410067486,1.649,594.19,593.69,0.33687614]
[1743410067792,1.649,594.19,593.7,0.27396376]
[1743410068091,1.649,594.19,593.71,0.33686479]
[1743410068387,2.448,594.19,593.72,0.27396376]
[1743410068588,2.448,594.19,593.73,0.33685345]
[1743410068783,2.448,594.19,593.74,0.27396376]
[1743410068986,2.448,594.19,593.75,0.3368421]
[1743410069182,2.448,594.19,593.76,0.2738247]
[1743410069387,2.448,594.19,593.77,0.33683075]
[1743410069689,1.763,594.19,593.78,0.2738247]
[1743410069887,1.763,594.19,593.79,0.33681941]
[1743410070083,1.763,594.19,593.8,0.2738247]
[1743410070284,1.763,594.19,593.81,0.33680806]
[1743410070488,1.763,594.19,593.82,0.2738247]
[1743410070682,1.763,594.19,593.83,0.33679672]
[1743410071089,1.763,594.19,593.84,0.27381451]
[1743410071283,1.763,594.19,593.85,0.33678538]
[1743410071689,1.763,594.19,593.86,0.27381451]
[1743410071889,1.763,594.19,593.87,0.33677404]
[1743410072185,1.763,594.19,593.88,0.27381451]
[1743410072788,1.763,594.19,593.89,0.3367627]
[1743410072983,1.763,594.19,593.9,0.27381451]
[1743410073184,1.763,594.19,593.91,0.33675135]
[1743410073385,1.763,594.19,593.92,0.27381451]
[1743410073587,1.763,594.19,593.93,0.33674001]
[1743410073889,1.763,594.19,593.94,0.27381451]
[1743410074188,1.763,594.19,593.95,0.33672868]
[1743410074390,1.763,594.19,593.96,0.27381451]
[1743410074689,1.763,594.19,593.97,0.27373258]
[1743410074891,1.763,594.19,593.96,0.27373258]
[1743410075086,0.799,594.19,593.97,0.27373258]
[1743410075285,0.799,594.19,593.96,0.27373258]
[1743410075490,0.799,594.19,593.97,0.27373258]
[1743410079497,0.799,594.19,593.98,0.33671167]
[1743410079697,0.799,594.19,593.99,0.27373258]
[1743410079892,0.799,594.19,594.0,0.33670033]
[1743410080096,0.799,594.19,594.01,0.27373258]
[1743410080298,0.799,594.19,594.02,0.336689]
[1743410080501,0.799,594.19,594.03,0.27373258]
[1743410080895,0.799,594.19,594.03,0.61041591]
[1743410081198,0.799,594.19,594.04,0.27373258]
[1743410085202,0.799,594.19,594.05,0.2736947]
[1743410085500,0.799,594.19,594.06,0.2736947]
[1743410085695,0.799,594.19,594.04,0.2736947]
[1743410085900,0.799,594.19,594.05,0.2736947]
[1743410086100,0.799,594.19,594.06,0.2736947]
[1743410086396,0.799,594.19,594.07,0.2736947]
[1743410086598,0.799,594.19,594.08,0.2736947]
[1743410086798,0.799,594.19,594.03,0.33668333]
[1743410086997,0.799,594.19,594.04,0.2736947]
[1743410091708,0.799,594.19,594.05,0.27370046]
[1743410091912,0.799,594.19,594.06,0.27370046]
[1743410092105,0.799,594.19,594.04,0.27370046]
[1743410092409,0.799,594.19,594.05,0.27370046]
[1743410092610,0.799,594.19,594.04,0.27370046]
[1743410092810,0.799,594.19,594.05,0.27370046]
[1743410093011,0.799,594.19,594.04,0.27370046]
[1743410093209,0.799,594.19,594.05,0.27370046]
[1743410093413,0.799,594.19,594.06,0.27370046]
[1743410093614,0.799,594.19,594.03,0.33668333]
[1743410094716,0.799,594.19,594.04,0.27380337]
[1743410094909,0.799,594.19,594.05,0.27380337]
[1743410095111,0.799,594.19,592.77,2.56500791]
[1743410095316,0.799,594.19,592.79,0.3373876]
[1743410095519,0.799,594.19,592.8,0.27381367]
[1743410095718,0.799,594.19,592.96,2.56500791]
[1743410095917,0.799,594.19,592.98,0.3372795]
[1743410096118,0.799,594.19,592.99,0.27381367]
[1743410096318,0.799,594.19,593.01,0.33726244]
[1743410096520,0.799,594.19,593.02,0.27381367]
[1743410096716,0.799,594.19,593.01,0.33726244]
[1743410096717,0.799,594.19,593.03,0.27381367]
[1743410096915,0.799,594.19,593.04,0.61105904]
[1743410097120,0.799,594.19,593.05,0.27381367]
[1743410097321,0.799,594.19,593.06,0.27381367]
[1743410097517,0.799,594.19,593.07,0.27381367]
[1743410097716,0.799,594.19,593.08,0.27381367]
[1743410097915,0.799,594.19,593.09,0.27381367]
[1743410098119,0.799,594.19,593.1,0.27381367]
[1743410098321,0.799,594.19,593.12,0.33719989]
[1743410098520,0.799,594.19,593.13,0.27381367]
[1743410098723,0.799,594.19,593.14,0.27381367]
[1743410099029,0.799,594.19,593.15,0.6109965]
[1743410099218,0.799,594.19,592.97,2.56500791]
[1743410099219,0.799,594.19,593.17,0.33717146]
[1743410099420,0.799,594.19,593.18,0.27381367]
[1743410099623,0.799,594.19,593.2,0.33715441]
[1743410099824,0.799,594.19,593.21,0.27381367]
[1743410100019,0.799,594.19,593.23,0.33713736]
[1743410100324,0.799,594.19,593.24,0.27381367]
[1743410100523,1.532,594.19,593.26,0.33712031]
[1743410100719,1.532,594.19,593.27,0.27381367]
[1743410100921,1.532,594.19,593.29,0.33710327]
[1743410101122,1.532,594.19,593.3,0.27389541]
[1743410101323,1.532,594.19,593.31,0.27389541]
[1743410101523,1.532,594.19,593.32,0.27389541]
[1743410101720,1.532,594.19,593.34,0.33707486]
[1743410101917,1.532,594.19,593.35,0.27389541]
[1743410102123,1.532,594.19,593.01,2.56500791]
[1743410102124,1.532,594.19,593.37,0.33705782]
[1743410102520,1.532,594.19,593.38,0.27387265]
[1743410102723,1.532,594.19,593.37,0.33705782]
[1743410102724,1.532,594.19,593.4,0.33704078]
[1743410102927,1.532,594.19,593.41,0.27387265]
[1743410103124,1.532,594.19,593.42,0.61090207]
[1743410103426,1.532,594.19,593.43,0.61089639]
[1743410103627,1.532,594.19,593.44,0.61089071]
[1743410103823,1.532,594.19,593.45,0.61088503]
[1743410104040,1.532,594.19,593.45,0.33701238]
[1743410104225,1.532,594.19,593.46,0.27383543]
[1743410104628,1.532,594.19,593.47,0.27383543]
[1743410104926,1.532,594.19,593.48,0.27383543]
[1743410105126,1.532,594.19,593.49,0.27383543]
[1743410105326,1.532,594.19,593.5,0.27383543]
[1743410105528,1.532,594.19,593.51,0.27383543]
[1743410105726,1.532,594.19,593.52,0.27383543]
[1743410105927,1.532,594.19,593.53,0.27383543]
[1743410106128,1.532,594.19,593.54,0.27383543]
[1743410106329,1.532,594.19,593.55,0.27383543]
[1743410106528,1.532,594.19,593.56,0.33694992]
[1743410106726,1.532,594.19,593.57,0.27383543]
[1743410106925,1.532,594.19,593.58,0.33693857]
[1743410107120,1.532,594.19,593.59,0.27383543]
[1743410107327,1.532,594.19,593.6,0.61076265]
[1743410107627,1.532,594.19,593.61,0.61075697]
[1743410107931,1.532,594.19,593.62,0.6107513]
[1743410108231,1.532,594.19,593.63,0.61074562]
[1743410108431,1.532,594.19,593.64,0.27383543]
[1743410108729,1.532,594.19,593.65,0.27383543]
[1743410108927,1.532,594.19,593.64,0.27383543]
[1743410109125,1.532,594.19,593.66,0.33689317]
[1743410109330,1.532,594.19,593.67,0.27383543]
[1743410109631,1.532,594.19,593.68,0.33688182]
[1743410109826,1.532,594.19,593.69,0.27383543]
[1743410110031,1.532,594.19,593.7,0.33687047]
[1743410110528,1.532,594.19,593.71,0.27383543]
[1743410110729,2.521,594.19,593.72,0.33685912]
[1743410110929,2.521,594.19,593.73,0.27383543]
[1743410111328,2.521,594.19,593.74,0.33684777]
[1743410111528,2.521,594.19,593.75,0.27383543]
[1743410111728,2.521,594.19,593.76,0.33683643]
[1743410111931,2.521,594.19,593.77,0.27383543]
[1743410112131,2.521,594.19,593.78,0.33682508]
[1743410112327,2.521,594.19,593.79,0.27383543]
[1743410112932,2.521,594.19,593.78,0.33682508]
[1743410113130,2.521,594.19,593.79,0.2738146]
[1743410114741,2.521,594.19,593.78,0.33682508]
[1743410114937,2.521,594.19,593.79,0.27381582]
[1743410115645,2.521,594.19,593.8,0.33681374]
[1743410115945,2.521,594.19,593.81,0.27381582]
[1743410116139,2.521,594.19,593.8,0.33681374]
[1743410116140,2.521,594.19,593.82,0.27381582]
[1743410116339,2.521,594.19,593.83,0.27381582]
[1743410116536,2.521,594.19,593.84,0.27381582]
[1743410116744,2.521,594.19,593.85,0.27381582]
[1743410116944,2.521,594.19,593.86,0.27381582]
[1743410117350,2.521,594.19,593.87,0.27381582]
[1743410117541,2.521,594.19,593.86,0.27381582]
[1743410117839,2.521,594.19,593.87,0.27381582]
[1743410118049,2.521,594.19,593.85,0.33678538]
[1743410118050,2.521,594.19,593.88,0.27381582]
[1743410118243,2.521,594.19,593.89,0.27381582]
[1743410118550,2.521,594.19,593.9,0.27381582]
[1743410118746,2.521,594.19,593.86,0.27381582]
[1743410118945,2.521,594.19,593.87,0.27381582]
[1743410119154,2.521,594.19,593.88,0.27381582]